[Event "44th Chess Olympiad Open 2022"]
[Site "Chennai"]
[Date "2022.08.08"]
[Round "10.19"]
[White "Sanchez, Sebastian Felipe"]
[Black "Thybo, Jesper Sondergaard"]
[Result "1/2-1/2"]
[WhiteElo "2440"]
[BlackElo "2520"]
[Annotator "RC"]
[PlyCount "123"]
[EventDate "2022.??.??"]
[TimeControl "60"]

1. d4 {[%emt 0:00:03]} Nf6 {[%emt 0:00:18]} 2. c4 {[%emt 0:00:04]} e6 {[%emt 0:
00:00]} 3. Nc3 {[%emt 0:00:23]} Bb4 {[%emt 0:00:10]} 4. Qc2 {[%emt 0:00:05]} d5
{[%emt 0:01:19]} 5. cxd5 {[%emt 0:00:07]} exd5 {[%emt 0:00:11]} 6. Bg5 {
[%emt 0:00:09]} h6 {[%emt 0:00:21]} 7. Bh4 {[%emt 0:00:05]} O-O {[%emt 0:00:22]
} 8. e3 {[%emt 0:02:42]} Re8 {[%emt 0:01:38]} 9. Nf3 {[%emt 0:07:24]} c5 {
[%emt 0:05:32]} 10. dxc5 {[%emt 0:01:46]} Nbd7 {[%emt 0:00:15]} 11. Bb5 {
[%emt 0:12:38]} Qa5 {[%emt 0:06:04]} 12. Nd4 {[%emt 0:03:30]} Ne4 {[%emt 0:00:
00]} 13. O-O {[%emt 0:01:13]} Bxc3 {[%emt 0:11:19]} 14. bxc3 {[%emt 0:00:03]}
a6 {[%emt 0:00:57]} 15. Ba4 {[%emt 0:10:09]} Qxc5 {[%emt 0:01:59]} 16. Bb3 {
[%emt 0:10:03]} Ne5 {[%emt 0:02:31]} 17. f3 {[%emt 0:01:42]} Nd6 {[%emt 0:00:
00]} 18. Bf2 {[%emt 0:00:06]} Bd7 {[%emt 0:06:09]} 19. Rad1 {[%emt 0:02:57]}
Nec4 {[%emt 0:05:34]} 20. Rfe1 {[%emt 0:05:06]} b5 {[%emt 0:03:53]} 21. Ne2 {
[%emt 0:14:37]} Nxe3 {[%emt 0:06:32]} 22. Qd2 {[%emt 0:03:46]} Rac8 {[%emt 0:
00:00]} 23. Ng3 {[%emt 0:09:24]} Ndc4 {[%emt 0:02:53]} 24. Bxc4 {[%emt 0:00:06]
} Nxc4 {[%emt 0:00:58]} 25. Bxc5 {[%emt 0:00:14]} Nxd2 {[%emt 0:00:12]} 26.
Rxe8+ {[%emt 0:00:05]} Bxe8 {[%emt 0:00:04]} 27. Bd4 {[%emt 0:00:16]} Nc4 {
[%emt 0:00:46]} 28. Nf5 {[%emt 0:00:04]} Kh7 {[%emt 0:05:41]} 29. Nxg7 {
[%emt 0:00:11]} f6 {[%emt 0:01:23]} 30. Bxf6 {[%emt 0:02:31]} Bf7 {[%emt 0:00:
00]} 31. Nf5 {[%emt 0:05:26]} Re8 {[%emt 0:06:16]} 32. Ne7 {[%emt 0:00:06]} Nb6
{[%emt 0:00:20]} 33. Kf2 {[%emt 0:01:32]} a5 {[%emt 0:01:44]} 34. Rd4 {[%emt 0:
00:00]} Nd7 {[%emt 0:00:40]} 35. Bh4 {[%emt 0:00:06]} Nb6 {[%emt 0:00:15]} 36.
Rg4 {[%emt 0:01:02]} Be6 {[%emt 0:00:59]} 37. Rd4 {[%emt 0:00:33]} Kg7 {
[%emt 0:02:24]} 38. f4 {[%emt 0:01:22]} Kf7 {[%emt 0:00:23]} 39. f5 {[%emt 0:
00:00]} Bc8 {[%emt 0:00:45]} 40. Nxd5 {[%emt 0:01:00]} Nxd5 {[%emt 0:00:32]}
41. Rxd5 {[%emt 0:30:02]} Re4 {[%emt 0:30:40]} 42. g3 {[%emt 0:00:00]} Rc4 {
[%emt 0:00:00]} 43. Rxb5 {[%emt 0:00:00]} a4 {[%emt 0:00:00]} 44. Ra5 {[%emt 0:
00:00]} Rxc3 {[%emt 0:00:00]} 45. Ra7+ {[%emt 0:00:00]} Kg8 {[%emt 0:00:00]}
46. g4 {[%emt 0:00:00]} h5 {[%emt 0:00:00]} 47. f6 {[%emt 0:00:00]} Rc2+ {
[%emt 0:00:00]} 48. Kg1 {[%emt 0:06:10]} Rc1+ {[%emt 0:00:00]} 49. Kf2 {
[%emt 0:00:03]} Rc2+ {[%emt 0:00:00]} 50. Ke3 {[%emt 0:00:43]} Bxg4 {[%emt 0:
00:00]} 51. f7+ {[%emt 0:01:00]} Kf8 {[%emt 0:00:00]} 52. Bg5 {[%emt 0:01:07]}
Rc6 {[%emt 0:00:00]} 53. Ke4 {[%emt 0:00:02]} Re6+ {[%emt 0:00:00]} 54. Kd5 {
[%emt 0:00:25]} Rg6 {[%emt 0:00:00]} 55. h4 {[%emt 0:01:22]} Be6+ {[%emt 0:00:
00]} 56. Ke5 {[%emt 0:00:02]} Bxa2 {[%emt 0:00:00]} 57. Be7+ {[%emt 0:00:08]}
Kxf7 {[%emt 0:00:00]} 58. Bf6+ {[%emt 0:00:02]} Kg8 {[%emt 0:00:00]} 59. Ra8+ {
[%emt 0:00:18]} Kf7 {[%emt 0:00:00]} 60. Rxa4 {[%emt 0:00:06]} Rxf6 {[%emt 0:
00:00]} 61. Rxa2 {[%emt 0:00:20]} Rf3 {[%emt 0:00:00]} 62. Ke4 {[%emt 0:00:12]}
1/2-1/2

[Event "44th Chess Olympiad Open 2022"]
[Site "Chennai"]
[Date "2022.08.08"]
[Round "10.19"]
[White "Haubro, Martin"]
[Black "Valderrama Quiceno, Esteban Alb"]
[Result "1-0"]
[WhiteElo "2411"]
[BlackElo "2436"]
[Annotator "RC"]
[PlyCount "53"]
[EventDate "2022.??.??"]
[TimeControl "60"]

1. e4 {[%emt 0:00:03]} g6 {[%emt 0:06:07]} 2. d4 {[%emt 0:00:05]} Bg7 {[%emt 0:
00:00]} 3. Nc3 {[%emt 0:00:06]} d6 {[%emt 0:01:17]} 4. Be3 {[%emt 0:00:13]} a6
{[%emt 0:08:18]} 5. h4 {[%emt 0:01:13]} Nf6 {[%emt 0:03:09]} 6. h5 {[%emt 0:00:
00]} Nxh5 {[%emt 0:04:34]} 7. Rxh5 {[%emt 0:00:07]} gxh5 {[%emt 0:00:07]} 8.
Qxh5 {[%emt 0:00:05]} e6 {[%emt 0:15:44]} 9. Bc4 {[%emt 0:05:59]} Qe7 {[%emt 0:
00:00]} 10. Nf3 {[%emt 0:10:59]} Nc6 {[%emt 0:02:14]} 11. O-O-O {[%emt 0:24:08]
} Bd7 {[%emt 0:06:04]} 12. d5 {[%emt 0:11:05]} Ne5 {[%emt 0:01:57]} 13. Bg5 {
[%emt 0:04:20]} Bf6 {[%emt 0:04:53]} 14. dxe6 {[%emt 0:00:37]} Bc6 {[%emt 0:00:
00]} 15. Bxf6 {[%emt 0:04:52]} Qxf6 {[%emt 0:00:07]} 16. Nxe5 {[%emt 0:00:11]}
dxe5 {[%emt 0:01:30]} 17. exf7+ {[%emt 0:00:21]} Kf8 {[%emt 0:01:19]} 18. g3 {
[%emt 0:11:25]} h6 {[%emt 0:00:34]} 19. f4 {[%emt 0:00:27]} exf4 {[%emt 0:00:
00]} 20. Qc5+ {[%emt 0:00:23]} Kg7 {[%emt 0:01:48]} 21. e5 {[%emt 0:00:10]} Qg5
{[%emt 0:00:47]} 22. gxf4 {[%emt 0:00:07]} Qxf4+ {[%emt 0:00:04]} 23. Kb1 {
[%emt 0:00:05]} Rhd8 {[%emt 0:00:46]} 24. Rg1+ {[%emt 0:02:48]} Kh8 {[%emt 0:
00:00]} 25. e6 {[%emt 0:00:13]} Rd4 {[%emt 0:02:44]} 26. e7 {[%emt 0:01:28]}
Rxc4 {[%emt 0:00:34]} 27. Qxc4 {[%emt 0:00:08]} 1-0

[Event "44th Chess Olympiad Open 2022"]
[Site "Chennai"]
[Date "2022.08.08"]
[Round "10.20"]
[White "Cheng, Bobby"]
[Black "Ashiku, Franc"]
[Result "1-0"]
[WhiteElo "2540"]
[BlackElo "2422"]
[Annotator "RC"]
[PlyCount "71"]
[EventDate "2022.??.??"]
[TimeControl "60"]

1. d4 {[%emt 0:00:03]} Nf6 {[%emt 0:00:14]} 2. c4 {[%emt 0:00:05]} g6 {[%emt 0:
00:00]} 3. Nc3 {[%emt 0:00:06]} Bg7 {[%emt 0:00:04]} 4. e4 {[%emt 0:00:04]} d6
{[%emt 0:00:04]} 5. h3 {[%emt 0:00:04]} O-O {[%emt 0:01:04]} 6. Be3 {[%emt 0:
00:00]} c6 {[%emt 0:00:21]} 7. g4 {[%emt 0:01:19]} a6 {[%emt 0:00:51]} 8. f4 {
[%emt 0:01:37]} b5 {[%emt 0:03:32]} 9. e5 {[%emt 0:00:19]} Nfd7 {[%emt 0:01:23]
} 10. h4 {[%emt 0:01:21]} b4 {[%emt 0:08:36]} 11. Nce2 {[%emt 0:07:35]} c5 {
[%emt 0:02:30]} 12. Bg2 {[%emt 0:05:40]} Ra7 {[%emt 0:00:50]} 13. h5 {[%emt 0:
00:00]} cxd4 {[%emt 0:21:53]} 14. Bxd4 {[%emt 0:08:47]} Nc5 {[%emt 0:03:11]}
15. Ng3 {[%emt 0:08:33]} Rd7 {[%emt 0:02:08]} 16. Bxc5 {[%emt 0:01:20]} dxc5 {
[%emt 0:00:10]} 17. Qe2 {[%emt 0:00:06]} Qc7 {[%emt 0:17:51]} 18. Be4 {[%emt 0:
00:00]} Rfd8 {[%emt 0:04:00]} 19. Nf3 {[%emt 0:00:03]} Bb7 {[%emt 0:06:38]} 20.
Bxb7 {[%emt 0:06:30]} Qxb7 {[%emt 0:00:20]} 21. e6 {[%emt 0:00:05]} Rd3 {
[%emt 0:02:36]} 22. exf7+ {[%emt 0:00:39]} Kxf7 {[%emt 0:00:59]} 23. hxg6+ {
[%emt 0:01:39]} hxg6 {[%emt 0:01:34]} 24. Ng5+ {[%emt 0:15:11]} Ke8 {[%emt 0:
00:00]} 25. Ne6 {[%emt 0:00:05]} Bxb2 {[%emt 0:00:14]} 26. Nxd8 {[%emt 0:01:24]
} Bc3+ {[%emt 0:05:37]} 27. Kf1 {[%emt 0:00:01]} Rxd8 {[%emt 0:02:15]} 28. Rd1
{[%emt 0:00:32]} Rxd1+ {[%emt 0:05:25]} 29. Qxd1 {[%emt 0:00:05]} Qc7 {[%emt 0:
00:00]} 30. Qf3 {[%emt 0:02:09]} Nc6 {[%emt 0:00:37]} 31. Kg2 {[%emt 0:03:42]}
Qd6 {[%emt 0:01:13]} 32. Ne4 {[%emt 0:00:56]} Qe6 {[%emt 0:03:38]} 33. Nxc5 {
[%emt 0:00:41]} Qc8 {[%emt 0:01:50]} 34. f5 {[%emt 0:03:12]} Bg7 {[%emt 0:00:
00]} 35. Qd5 {[%emt 0:02:49]} Ne5 {[%emt 0:01:46]} 36. Rh8+ {[%emt 0:01:08]}
1-0

[Event "44th Chess Olympiad Open 2022"]
[Site "Chennai"]
[Date "2022.08.08"]
[Round "10.20"]
[White "Zhao, Zong-Yuan"]
[Black "Veleshnja, Zino"]
[Result "1-0"]
[WhiteElo "2513"]
[BlackElo "2263"]
[Annotator "RC"]
[PlyCount "71"]
[EventDate "2022.??.??"]
[TimeControl "60"]

1. c4 {[%emt 0:00:02]} Nf6 {[%emt 0:00:08]} 2. Nc3 {[%emt 0:00:05]} c5 {
[%emt 0:01:28]} 3. Nf3 {[%emt 0:00:12]} g6 {[%emt 0:00:24]} 4. d4 {[%emt 0:00:
00]} cxd4 {[%emt 0:00:23]} 5. Nxd4 {[%emt 0:00:02]} Bg7 {[%emt 0:00:29]} 6. e4
{[%emt 0:00:05]} Nc6 {[%emt 0:01:03]} 7. Nc2 {[%emt 0:01:41]} d6 {[%emt 0:00:
00]} 8. Be2 {[%emt 0:00:04]} O-O {[%emt 0:00:34]} 9. O-O {[%emt 0:00:04]} Be6 {
[%emt 0:01:53]} 10. Be3 {[%emt 0:03:16]} Nd7 {[%emt 0:05:26]} 11. Qd2 {[%emt 0:
00:00]} Nc5 {[%emt 0:07:25]} 12. Bh6 {[%emt 0:04:55]} a5 {[%emt 0:06:15]} 13.
Bxg7 {[%emt 0:02:37]} Kxg7 {[%emt 0:00:05]} 14. f4 {[%emt 0:01:38]} f5 {
[%emt 0:11:57]} 15. exf5 {[%emt 0:02:17]} Bxf5 {[%emt 0:01:15]} 16. Nd4 {
[%emt 0:25:10]} Ne6 {[%emt 0:08:45]} 17. Ndb5 {[%emt 0:21:41]} Qb6+ {[%emt 0:
00:00]} 18. Kh1 {[%emt 0:00:04]} h5 {[%emt 0:08:57]} 19. Na4 {[%emt 0:03:29]}
Qd8 {[%emt 0:02:52]} 20. Rad1 {[%emt 0:00:06]} Nb4 {[%emt 0:06:03]} 21. b3 {
[%emt 0:03:31]} Qe8 {[%emt 0:03:35]} 22. Bf3 {[%emt 0:05:13]} Bg4 {[%emt 0:00:
00]} 23. a3 {[%emt 0:09:49]} Na6 {[%emt 0:01:59]} 24. Bxg4 {[%emt 0:00:51]}
hxg4 {[%emt 0:00:06]} 25. Nb6 {[%emt 0:00:04]} Rd8 {[%emt 0:01:58]} 26. Qc3+ {
[%emt 0:00:29]} Kh7 {[%emt 0:04:08]} 27. Qg3 {[%emt 0:00:21]} Rf5 {[%emt 0:00:
00]} 28. Qxg4 {[%emt 0:01:19]} Qf7 {[%emt 0:00:23]} 29. Nd5 {[%emt 0:00:10]}
Kg7 {[%emt 0:02:27]} 30. Rde1 {[%emt 0:04:31]} Re8 {[%emt 0:03:36]} 31. Re3 {
[%emt 0:03:36]} Nac5 {[%emt 0:00:26]} 32. Rfe1 {[%emt 0:00:20]} Nxf4 {[%emt 0:
00:00]} 33. Rxe7 {[%emt 0:04:26]} Nxd5 {[%emt 0:05:45]} 34. Rxf7+ {[%emt 0:00:
00]} Rxf7 {[%emt 0:00:16]} 35. Qd4+ {[%emt 0:00:32]} Re5 {[%emt 0:02:01]} 36.
Nxd6 {[%emt 0:00:43]} 1-0

[Event "44th Chess Olympiad Open 2022"]
[Site "Chennai"]
[Date "2022.08.08"]
[Round "10.20"]
[White "Pasko, Llambi"]
[Black "Smirnov, Anton"]
[Result "1/2-1/2"]
[WhiteElo "2418"]
[BlackElo "2600"]
[Annotator "RC"]
[PlyCount "88"]
[EventDate "2022.??.??"]
[TimeControl "60"]

1. d4 {[%emt 0:00:03]} Nf6 {[%emt 0:00:12]} 2. c4 {[%emt 0:00:14]} e6 {[%emt 0:
00:00]} 3. Nf3 {[%emt 0:00:20]} d5 {[%emt 0:00:06]} 4. Nc3 {[%emt 0:00:05]}
Nbd7 {[%emt 0:00:06]} 5. e3 {[%emt 0:02:52]} a6 {[%emt 0:01:20]} 6. a3 {
[%emt 0:02:24]} dxc4 {[%emt 0:11:05]} 7. Bxc4 {[%emt 0:00:16]} b5 {[%emt 0:00:
00]} 8. Ba2 {[%emt 0:00:49]} c5 {[%emt 0:03:22]} 9. O-O {[%emt 0:01:38]} Bb7 {
[%emt 0:03:04]} 10. Qe2 {[%emt 0:02:55]} Bd6 {[%emt 0:09:58]} 11. Rd1 {[%emt 0:
00:00]} Qc7 {[%emt 0:03:44]} 12. h3 {[%emt 0:06:56]} O-O {[%emt 0:01:52]} 13.
dxc5 {[%emt 0:12:49]} Bxc5 {[%emt 0:10:03]} 14. e4 {[%emt 0:05:54]} b4 {
[%emt 0:03:50]} 15. axb4 {[%emt 0:00:11]} Bxb4 {[%emt 0:00:02]} 16. Bd2 {
[%emt 0:01:09]} Bxc3 {[%emt 0:09:07]} 17. Bxc3 {[%emt 0:00:04]} Bxe4 {[%emt 0:
00:00]} 18. Ng5 {[%emt 0:12:46]} Bg6 {[%emt 0:06:58]} 19. Bc4 {[%emt 0:09:24]}
h6 {[%emt 0:02:29]} 20. Nf3 {[%emt 0:00:38]} a5 {[%emt 0:01:34]} 21. Ne5 {
[%emt 0:04:38]} Nxe5 {[%emt 0:02:28]} 22. Bxe5 {[%emt 0:00:03]} Qb7 {[%emt 0:
00:00]} 23. Bxf6 {[%emt 0:00:41]} gxf6 {[%emt 0:00:11]} 24. Bd3 {[%emt 0:00:12]
} Bxd3 {[%emt 0:04:27]} 25. Rxd3 {[%emt 0:00:14]} Kh7 {[%emt 0:00:08]} 26. Qc2
{[%emt 0:09:13]} f5 {[%emt 0:00:40]} 27. Rb3 {[%emt 0:00:15]} Qd5 {[%emt 0:00:
00]} 28. Rd1 {[%emt 0:03:08]} Qe5 {[%emt 0:00:46]} 29. Rb7 {[%emt 0:02:08]}
Rab8 {[%emt 0:00:35]} 30. Rdd7 {[%emt 0:00:52]} Rxb7 {[%emt 0:01:45]} 31. Rxb7
{[%emt 0:00:03]} Kg7 {[%emt 0:00:10]} 32. Rb3 {[%emt 0:05:39]} Rd8 {[%emt 0:00:
00]} 33. Re3 {[%emt 0:00:23]} Qf6 {[%emt 0:01:53]} 34. Qc7 {[%emt 0:03:49]} a4
{[%emt 0:02:52]} 35. Kh2 {[%emt 0:01:18]} h5 {[%emt 0:01:58]} 36. Rxe6 {
[%emt 0:01:29]} Qxe6 {[%emt 0:00:08]} 37. Qxd8 {[%emt 0:00:03]} Qe5+ {[%emt 0:
00:00]} 38. Kh1 {[%emt 0:00:18]} Qxb2 {[%emt 0:02:33]} 39. Qg5+ {[%emt 0:00:06]
} Kf8 {[%emt 0:01:17]} 40. Qd8+ {[%emt 0:00:04]} Kg7 {[%emt 0:00:04]} 41. Qg5+
{[%emt 0:30:03]} Kh8 {[%emt 0:11:55]} 42. Qxh5+ {[%emt 0:00:00]} Kg8 {[%emt 0:
00:00]} 43. Qg5+ {[%emt 0:00:00]} Qg7 {[%emt 0:00:07]} 44. Qd8+ {[%emt 0:00:00]
} Qf8 {[%emt 0:01:36]} 1/2-1/2

[Event "44th Chess Olympiad Open 2022"]
[Site "Chennai"]
[Date "2022.08.08"]
[Round "10.20"]
[White "Mehmeti, Dritan"]
[Black "Tan, Justin"]
[Result "0-1"]
[WhiteElo "2371"]
[BlackElo "2508"]
[Annotator "RC"]
[PlyCount "72"]
[EventDate "2022.??.??"]
[TimeControl "60"]

1. e4 {[%emt 0:00:55]} e5 {[%emt 0:02:17]} 2. Nf3 {[%emt 0:00:16]} Nc6 {
[%emt 0:00:04]} 3. Bc4 {[%emt 0:00:25]} Bc5 {[%emt 0:01:10]} 4. O-O {[%emt 0:
00:00]} Nf6 {[%emt 0:00:08]} 5. d3 {[%emt 0:00:42]} d6 {[%emt 0:01:06]} 6. c3 {
[%emt 0:01:34]} O-O {[%emt 0:01:10]} 7. h3 {[%emt 0:00:36]} h6 {[%emt 0:00:07]}
8. Re1 {[%emt 0:00:49]} a5 {[%emt 0:01:53]} 9. Nbd2 {[%emt 0:01:56]} Be6 {
[%emt 0:00:13]} 10. Bb5 {[%emt 0:02:20]} Qb8 {[%emt 0:00:21]} 11. Nf1 {[%emt 0:
00:00]} Qa7 {[%emt 0:00:26]} 12. Re2 {[%emt 0:03:40]} a4 {[%emt 0:05:00]} 13.
Ng3 {[%emt 0:09:36]} Qa5 {[%emt 0:02:49]} 14. Bxc6 {[%emt 0:07:40]} bxc6 {
[%emt 0:00:03]} 15. d4 {[%emt 0:00:57]} Ba7 {[%emt 0:07:12]} 16. Be3 {[%emt 0:
00:00]} Rfe8 {[%emt 0:06:25]} 17. Qd2 {[%emt 0:04:52]} Kh7 {[%emt 0:02:47]} 18.
a3 {[%emt 0:08:36]} Rab8 {[%emt 0:08:37]} 19. dxe5 {[%emt 0:04:48]} Bxe3 {
[%emt 0:02:52]} 20. Qxe3 {[%emt 0:00:14]} dxe5 {[%emt 0:00:07]} 21. Rd1 {
[%emt 0:00:21]} Qb6 {[%emt 0:11:25]} 22. Qc1 {[%emt 0:03:14]} Qc5 {[%emt 0:00:
00]} 23. Nh4 {[%emt 0:06:31]} Rb5 {[%emt 0:02:58]} 24. Nhf5 {[%emt 0:00:23]}
Reb8 {[%emt 0:00:43]} 25. Ne3 {[%emt 0:03:02]} g6 {[%emt 0:08:43]} 26. Kh2 {
[%emt 0:01:08]} Ne8 {[%emt 0:01:20]} 27. f3 {[%emt 0:06:07]} Qe7 {[%emt 0:00:
00]} 28. Rdd2 {[%emt 0:02:43]} Nd6 {[%emt 0:00:56]} 29. Qd1 {[%emt 0:01:30]}
Bb3 {[%emt 0:02:52]} 30. Qe1 {[%emt 0:01:24]} Qg5 {[%emt 0:06:14]} 31. Nh1 {
[%emt 0:03:58]} Be6 {[%emt 0:01:15]} 32. g3 {[%emt 0:03:50]} Qh5 {[%emt 0:00:
00]} 33. g4 {[%emt 0:03:00]} Qg5 {[%emt 0:00:01]} 34. Qg3 {[%emt 0:00:18]} Bc4
{[%emt 0:03:01]} 35. Nxc4 {[%emt 0:06:27]} Nxc4 {[%emt 0:00:01]} 36. h4 {
[%emt 0:01:57]} Nxd2 {[%emt 0:00:53]} 0-1

[Event "44th Chess Olympiad Open 2022"]
[Site "Chennai"]
[Date "2022.08.08"]
[Round "10.21"]
[White "Perez Ponsa, Federico"]
[Black "Siddharth, Jagadeesh"]
[Result "1/2-1/2"]
[WhiteElo "2554"]
[BlackElo "2426"]
[Annotator "RC"]
[PlyCount "258"]
[EventDate "2022.??.??"]
[TimeControl "60"]

1. e4 {[%emt 0:00:07]} e5 {[%emt 0:00:32]} 2. Nf3 {[%emt 0:00:13]} Nf6 {
[%emt 0:00:34]} 3. Nxe5 {[%emt 0:00:49]} d6 {[%emt 0:00:28]} 4. Nf3 {[%emt 0:
00:00]} Nxe4 {[%emt 0:00:23]} 5. d4 {[%emt 0:00:29]} d5 {[%emt 0:00:24]} 6. Bd3
{[%emt 0:00:28]} Bd6 {[%emt 0:00:19]} 7. O-O {[%emt 0:00:16]} O-O {[%emt 0:00:
00]} 8. c4 {[%emt 0:00:21]} c6 {[%emt 0:00:28]} 9. Nc3 {[%emt 0:00:48]} Nxc3 {
[%emt 0:00:22]} 10. bxc3 {[%emt 0:00:05]} dxc4 {[%emt 0:00:13]} 11. Bxc4 {
[%emt 0:00:05]} Bf5 {[%emt 0:00:19]} 12. Bg5 {[%emt 0:01:44]} Qa5 {[%emt 0:00:
00]} 13. Nh4 {[%emt 0:04:12]} Be6 {[%emt 0:00:09]} 14. Bxe6 {[%emt 0:00:07]}
Qxg5 {[%emt 0:00:07]} 15. Nf3 {[%emt 0:00:06]} Qa5 {[%emt 0:00:09]} 16. Bb3 {
[%emt 0:00:06]} Nd7 {[%emt 0:00:05]} 17. Qd3 {[%emt 0:05:18]} Nf6 {[%emt 0:00:
00]} 18. g3 {[%emt 0:04:26]} Rae8 {[%emt 0:00:16]} 19. Rfe1 {[%emt 0:05:54]} g6
{[%emt 0:02:09]} 20. Kg2 {[%emt 0:03:35]} Kg7 {[%emt 0:01:10]} 21. h4 {[%emt 0:
00:00]} h6 {[%emt 0:02:23]} 22. Rad1 {[%emt 0:02:51]} Qc7 {[%emt 0:04:50]} 23.
c4 {[%emt 0:06:30]} b6 {[%emt 0:25:32]} 24. Bc2 {[%emt 0:24:31]} Rd8 {[%emt 0:
00:00]} 25. h5 {[%emt 0:02:27]} Nxh5 {[%emt 0:02:57]} 26. Nh4 {[%emt 0:00:55]}
Qd7 {[%emt 0:10:58]} 27. Qf3 {[%emt 0:07:34]} Nf6 {[%emt 0:00:26]} 28. Rh1 {
[%emt 0:05:39]} Qg4 {[%emt 0:06:20]} 29. Ba4 {[%emt 0:06:27]} c5 {[%emt 0:00:
00]} 30. Qxg4 {[%emt 0:03:47]} Nxg4 {[%emt 0:00:00]} 31. d5 {[%emt 0:00:29]} f5
{[%emt 0:06:32]} 32. Rhe1 {[%emt 0:01:05]} Ne5 {[%emt 0:02:49]} 33. f4 {
[%emt 0:08:32]} Nxc4 {[%emt 0:00:40]} 34. Bb3 {[%emt 0:00:07]} Na5 {[%emt 0:00:
00]} 35. Re6 {[%emt 0:00:06]} Rf6 {[%emt 0:00:57]} 36. Rxf6 {[%emt 0:03:34]}
Kxf6 {[%emt 0:00:01]} 37. Re1 {[%emt 0:00:05]} c4 {[%emt 0:01:30]} 38. Ba4 {
[%emt 0:01:23]} Be7 {[%emt 0:01:12]} 39. Nxg6 {[%emt 0:00:32]} Kxg6 {[%emt 0:
00:00]} 40. Rxe7 {[%emt 0:00:16]} Rxd5 {[%emt 0:00:26]} 41. Be8+ {[%emt 0:00:
00]} Kf6 {[%emt 0:01:17]} 42. Rf7+ {[%emt 0:03:15]} Ke6 {[%emt 0:00:23]} 43.
Rxa7 {[%emt 0:00:07]} Rc5 {[%emt 0:04:41]} 44. Ra6 {[%emt 0:01:45]} c3 {
[%emt 0:03:23]} 45. Rxb6+ {[%emt 0:00:09]} Ke7 {[%emt 0:00:03]} 46. Ba4 {
[%emt 0:00:07]} c2 {[%emt 0:00:55]} 47. Bxc2 {[%emt 0:00:03]} Rxc2+ {[%emt 0:
00:00]} 48. Kh3 {[%emt 0:00:20]} Nc4 {[%emt 0:00:38]} 49. Rc6 {[%emt 0:05:31]}
Rc1 {[%emt 0:10:16]} 50. Kh2 {[%emt 0:04:16]} Kd7 {[%emt 0:10:55]} 51. Rc5 {
[%emt 0:00:19]} Kd6 {[%emt 0:00:03]} 52. Rxf5 {[%emt 0:01:00]} Ne3 {[%emt 0:00:
00]} 53. Rh5 {[%emt 0:02:07]} Ra1 {[%emt 0:00:01]} 54. a4 {[%emt 0:03:35]} Rxa4
{[%emt 0:00:33]} 55. g4 {[%emt 0:01:25]} Nxg4+ {[%emt 0:03:03]} 56. Kg3 {
[%emt 0:00:08]} Ne3 {[%emt 0:00:07]} 57. Rxh6+ {[%emt 0:00:08]} Kd5 {[%emt 0:
00:00]} 58. Rh5+ {[%emt 0:00:27]} Ke4 {[%emt 0:02:23]} 59. Re5+ {[%emt 0:00:12]
} Kd4 {[%emt 0:00:17]} 60. Kf3 {[%emt 0:00:09]} Nc4 {[%emt 0:00:05]} 61. Re4+ {
[%emt 0:01:23]} Kd5 {[%emt 0:00:46]} 62. Re8 {[%emt 0:00:25]} Nd6 {[%emt 0:00:
00]} 63. Re5+ {[%emt 0:00:06]} Kd4 {[%emt 0:00:07]} 64. Re1 {[%emt 0:00:26]}
Ra3+ {[%emt 0:00:29]} 65. Kg4 {[%emt 0:00:06]} Ne4 {[%emt 0:00:45]} 66. Kf5 {
[%emt 0:00:20]} Ra5+ {[%emt 0:00:09]} 67. Ke6 {[%emt 0:00:44]} Nc5+ {[%emt 0:
00:00]} 68. Kf6 {[%emt 0:00:25]} Ra6+ {[%emt 0:00:55]} 69. Kf5 {[%emt 0:00:10]}
Nd3 {[%emt 0:00:33]} 70. Re4+ {[%emt 0:00:06]} Kd5 {[%emt 0:00:06]} 71. Re8 {
[%emt 0:00:06]} Rd6 {[%emt 0:00:22]} 72. Re3 {[%emt 0:00:14]} Nc5 {[%emt 0:00:
00]} 73. Re5+ {[%emt 0:00:07]} Kd4 {[%emt 0:00:03]} 74. Re1 {[%emt 0:00:09]}
Rd8 {[%emt 0:00:19]} 75. Rd1+ {[%emt 0:00:48]} Nd3 {[%emt 0:00:03]} 76. Ra1 {
[%emt 0:00:24]} Rf8+ {[%emt 0:00:05]} 77. Ke6 {[%emt 0:00:06]} Nc5+ {[%emt 0:
00:00]} 78. Kd6 {[%emt 0:00:20]} Rf6+ {[%emt 0:00:04]} 79. Ke7 {[%emt 0:00:07]}
Rxf4 {[%emt 0:00:28]} 80. Rd1+ {[%emt 0:00:24]} Ke5 {[%emt 0:00:23]} 81. Re1+ {
[%emt 0:00:06]} Ne4 {[%emt 0:01:18]} 82. Kd7 {[%emt 0:00:08]} Rf6 {[%emt 0:00:
00]} 83. Kc7 {[%emt 0:00:10]} Kd5 {[%emt 0:00:29]} 84. Rd1+ {[%emt 0:00:06]}
Ke5 {[%emt 0:01:28]} 85. Re1 {[%emt 0:00:08]} Rf2 {[%emt 0:00:31]} 86. Kc6 {
[%emt 0:00:24]} Rc2+ {[%emt 0:00:03]} 87. Kb6 {[%emt 0:00:23]} Kd5 {[%emt 0:00:
00]} 88. Rd1+ {[%emt 0:00:05]} Nd2 {[%emt 0:00:27]} 89. Rh1 {[%emt 0:00:25]}
Nf3 {[%emt 0:00:24]} 90. Rh5+ {[%emt 0:00:24]} Ne5 {[%emt 0:00:01]} 91. Rh1 {
[%emt 0:00:40]} Nd7+ {[%emt 0:00:22]} 92. Kb5 {[%emt 0:00:47]} Rb2+ {[%emt 0:
00:00]} 93. Ka4 {[%emt 0:00:07]} Nc5+ {[%emt 0:01:42]} 94. Ka3 {[%emt 0:00:23]}
Rb8 {[%emt 0:00:24]} 95. Rh5+ {[%emt 0:00:51]} Kd4 {[%emt 0:00:35]} 96. Rh4+ {
[%emt 0:00:07]} Ne4 {[%emt 0:00:01]} 97. Ka4 {[%emt 0:00:21]} Rb1 {[%emt 0:00:
00]} 98. Rg4 {[%emt 0:02:39]} Kd5 {[%emt 0:00:47]} 99. Rh4 {[%emt 0:00:48]} Nd2
{[%emt 0:00:41]} 100. Rh5+ {[%emt 0:00:14]} Kd4 {[%emt 0:00:23]} 101. Rh4+ {
[%emt 0:00:04]} Ne4 {[%emt 0:00:13]} 102. Rg4 {[%emt 0:00:06]} Kd5 {[%emt 0:00:
00]} 103. Rh4 {[%emt 0:00:30]} Nc5+ {[%emt 0:00:23]} 104. Ka3 {[%emt 0:00:08]}
Rb3+ {[%emt 0:00:35]} 105. Ka2 {[%emt 0:00:06]} Rb8 {[%emt 0:00:24]} 106. Ka3 {
[%emt 0:00:15]} Nd3 {[%emt 0:00:37]} 107. Ka4 {[%emt 0:00:25]} Nb2+ {[%emt 0:
00:00]} 108. Ka3 {[%emt 0:00:18]} Nd1 {[%emt 0:00:36]} 109. Rh5+ {[%emt 0:00:
00]} Kc4 {[%emt 0:00:29]} 110. Rh4+ {[%emt 0:00:05]} Kd3 {[%emt 0:00:07]} 111.
Rh3+ {[%emt 0:00:03]} Ne3 {[%emt 0:00:04]} 112. Ka4 {[%emt 0:00:39]} Kc4 {
[%emt 0:00:10]} 113. Rh4+ {[%emt 0:00:07]} Kc5 {[%emt 0:00:02]} 114. Rh5+ {
[%emt 0:00:06]} Nd5 {[%emt 0:00:02]} 115. Ka3 {[%emt 0:00:07]} Rb5 {[%emt 0:00:
00]} 116. Rh4 {[%emt 0:00:23]} Rb1 {[%emt 0:00:27]} 117. Rh5 {[%emt 0:00:22]}
Rd1 {[%emt 0:00:11]} 118. Kb3 {[%emt 0:00:11]} Rd3+ {[%emt 0:00:05]} 119. Kc2 {
[%emt 0:00:05]} Rg3 {[%emt 0:00:06]} 120. Rh8 {[%emt 0:00:10]} Ne3+ {[%emt 0:
00:00]} 121. Kd3 {[%emt 0:00:55]} Nd5+ {[%emt 0:00:17]} 122. Kd2 {[%emt 0:00:
00]} Nf4 {[%emt 0:00:27]} 123. Rf8 {[%emt 0:00:28]} Rd3+ {[%emt 0:00:41]} 124.
Kc2 {[%emt 0:00:05]} Rf3 {[%emt 0:00:05]} 125. Rc8+ {[%emt 0:00:06]} Kd4 {
[%emt 0:00:05]} 126. Rd8+ {[%emt 0:00:05]} Nd5 {[%emt 0:00:05]} 127. Kd2 {
[%emt 0:00:08]} Re3 {[%emt 0:00:44]} 128. Rxd5+ {[%emt 0:00:07]} Kxd5 {[%emt 0:
00:00]} 129. Kxe3 {[%emt 0:00:04]} Ke5 {[%emt 0:00:00]} 1/2-1/2